Cogmind - Beta 16.1 @@@ ROGUE MODE // 2026.04.16 @ 19:39:33 Player: Thqwib-Linux Result: Destroyed by Tracker with Linked Autogun Performance ------------- Evolutions (8) 4000 Regions Visited (23) 4600 Robots Destroyed (300) 1500 Value Destroyed (12673) 12673 Prototype IDs (50) 1000 Alien Tech Used (2) 400 Bonus (7381) 7381 TOTAL SCORE: 31554 Bonus ------- High Alert Combat Kills 1924 Follower Combat Kills 126 Entered DSFs 500 Met Warlord at Base 500 MAIN.C Attacked Warlord 500 Warlord Defense Kills 314 Found Hidden Lab 3000 Pursued by Intercept 1000 Friendly Fire -483 Cogmind --------- Core Integrity 0/1450 Matter 300/300 Energy 99/100 System Corruption 36% Temperature Cool (0) Movement Core (50) Location -2/Testing Parts ------- > --- POWER (2) -------- (None) > --- PROPULSION (7) --- (None) > --- UTILITY (11) ----- Advanced Signal Interpreter Advanced Targeting Computer Advanced Targeting Computer Quantum Router > --- WEAPON (4) ------- (None) > --- INVENTORY (5) ---- Advanced Weapon Cycler Graphene Brace Improved Point Defense System Peak State ------------ > --- POWER ------------ Graviton Reactor Quantum Reactor > --- PROPULSION ------- Armored Heavy Treads Centrium Wheel Centrium Wheel High-density Centrium Wheel > --- UTILITY ---------- Huge Storage Unit Advanced Sensor Array Advanced Signal Interpreter Advanced Targeting Computer Tactical Coordination Suite Core Analyzer Advanced Weapon Cycler Experimental Powered Armor Experimental Focal Shield Advanced Point Defense System Experimental System Shield > --- WEAPON ----------- Heavy Tesla Rifle Heavy Tesla Rifle Enhanced Quantum Rifle Force Lance > --- INVENTORY -------- Quantum Reactor Light Quantum Reactor Biometal Heavy Treads Wheel Experimental Heat Sink Advanced Targeting Computer Quantum Capacitor Advanced Phase Shifter Centrium Heavy Armor Plating Graphene Brace Improved Hardlight Generator Improved Point Defense System Quantum Router Authchip [Device] Improved System Restoration Module High-powered Tractor Beam Hypervelocity EM Gauss Rifle Tachyon Dispersion Ray Heavy Autocannon Fusion Bomb Launcher Improved Plasma Cutter [Rating: 172] Favorites ----------- Power Particle Reactor Engine Cooled Ion Engine Power Core Micro Nuclear Core Reactor Particle Reactor Propulsion Compact Wheel Treads Armored Medium Treads Leg Enhanced Biometal Leg Wheel Compact Wheel Hover Unit Improved Gyrokinetic Inverter Utility High-capacity Storage Unit Device Advanced Sensor Array Storage High-capacity Storage Unit Processor Advanced Targeting Computer Hackware Advanced System Shield Protection Hardened Medium Armor Plating Weapon Improved Assault Rifle Energy Gun Enhanced Quantum Rifle Energy Cannon Matter Neutralizer Ballistic Gun Improved Assault Rifle Ballistic Cannon Hypervelocity Mass Driver Launcher Fusion Bomb Launcher Special Weapon Improved Plasma Cutter Slashing Weapon Axe Piercing Weapon Force Lance Build | -11 -10 -10 -9 -9 -9 -8 -8 -7 -6 -5 -5 -5 -5 -5 -5 -4 -4 -4 -3 -3 -3 -2 -2 ------- Run | Yrd Mat Min Mat Min Exi Min Mat Fac Fac Fac Was Fac Upp Upp War Pro Fac DSF Res Arm Lab Res Tes Slots Evolved 16 | . . . 2 . . . 2 2 2 2 . . . . . . 2 . 2 . . 2 . Power 1 | . . . . . . . . . . . . . . . . . 1 . . . . . . Propulsion 4 | . . . 1 . . . 1 . . . . . . . . . 1 . . . . 1 . Utility 9 | . . . 1 . . . . 2 2 2 . . . . . . . . 1 . . 1 . Weapon 2 | . . . . . . . 1 . . . . . . . . . . . 1 . . . . Parts Attached 261 | 5 12 . 22 . . 4 17 3 5 2 3 30 6 2 20 5 1 26 41 18 8 15 16 Power 31 | . . . 4 . . 1 3 1 . . 2 2 1 1 3 . 1 4 1 . 3 1 3 Engine 9 | . . . 3 . . . 1 1 . . . 1 1 . 1 . . . . . . . 1 Core 8 | . . . 1 . . 1 2 . . . . 1 . 1 . . . 2 . . . . . Reactor 14 | . . . . . . . . . . . 2 . . . 2 . 1 2 1 . 3 1 2 Propulsion 67 | 3 3 . 6 . . 1 8 . 1 . . 9 2 1 5 1 . 6 12 1 2 2 4 Treads 27 | 1 2 . 4 . . 1 4 . . . . 5 1 . . . . . 6 1 2 . . Leg 12 | . . . . . . . . . . . . . . . 5 1 . 6 . . . . . Wheel 27 | 2 1 . 2 . . . 4 . 1 . . 4 1 1 . . . . 6 . . 1 4 Hover 1 | . . . . . . . . . . . . . . . . . . . . . . 1 . Flight . | . . . . . . . . . . . . . . . . . . . . . . . . Utility 99 | 1 5 . 8 . . 2 3 2 4 2 1 12 1 . 9 2 . 5 19 8 1 9 5 Device 56 | 1 2 . 3 . . 1 . . 3 1 1 6 1 . 5 2 . 2 15 6 . 5 2 Storage 8 | . 2 . 1 . . . 1 . . . . . . . 1 . . 1 1 . . . 1 Processor 8 | . . . . . . . . 1 1 . . 2 . . 1 . . . 2 . . 1 . Hackware 6 | . . . . . . . . . . . . 1 . . 1 . . 2 . . 1 1 . Protection 21 | . 1 . 4 . . 1 2 1 . 1 . 3 . . 1 . . . 1 2 . 2 2 Artifact . | . . . . . . . . . . . . . . . . . . . . . . . . Weapon 64 | 1 4 . 4 . . . 3 . . . . 7 2 . 3 2 . 11 9 9 2 3 4 Energy Gun 13 | . . . . . . . . . . . . . . . . . . 2 . 3 2 2 4 Energy Cannon 7 | . . . 1 . . . . . . . . 1 1 . . . . 1 1 1 . 1 . Ballistic Gun 32 | 1 4 . 2 . . . 3 . . . . 4 1 . 2 1 . 6 3 5 . . . Ballistic Cannon 5 | . . . . . . . . . . . . 1 . . . . . 2 2 . . . . Launcher 2 | . . . . . . . . . . . . . . . . 1 . . 1 . . . . Special Weapon 2 | . . . . . . . . . . . . . . . 1 . . . 1 . . . . Impact Weapon . | . . . . . . . . . . . . . . . . . . . . . . . . Slashing Weapon 1 | . . . 1 . . . . . . . . . . . . . . . . . . . . Piercing Weapon 2 | . . . . . . . . . . . . 1 . . . . . . 1 . . . . Special Melee Weapon . | . . . . . . . . . . . . . . . . . . . . . . . . Unidentified Prototypes 30 | . 1 . 1 . . . . 1 . . . 2 . . 5 . . 3 5 . 3 7 2 Corrupted Parts 2 | . . . . . . . . . . . . 1 . . . . . . . . . 1 . System Corruption 16 | . . . . . . . . . . . . 6 . . . . . . . . . 10 . Parts Lost 96 | . 1 . 2 . . 2 1 . . . . 14 5 1 3 4 . 2 8 6 2 25 20 Power 13 | . . . . . . . . . . . . 3 . . . . . 1 2 . . 4 3 Propulsion 22 | . . . 1 . . 1 1 . . . . 5 2 1 . . . . . 1 . 6 4 Utility 37 | . 1 . . . . 1 . . . . . 3 2 . 3 3 . . 4 3 1 8 8 Weapon 24 | . . . 1 . . . . . . . . 3 1 . . 1 . 1 2 2 1 7 5 Highest Loss Streak 25 | . 1 . 1 . . 2 1 . . . . 4 3 1 2 1 . 2 4 4 2 25 20 To Critical Strikes 3 | . . . . . . . . . . . . . . . . 1 . 1 1 . . . . Average Backups 16 | 4 9 12 17 20 20 18 19 19 18 17 19 17 16 18 17 15 12 15 17 19 18 18 4 Power 1 | 1 1 1 1 1 1 1 1 1 1 1 1 . . 1 1 2 1 1 1 2 1 1 . Propulsion 2 | 2 2 3 2 4 4 3 2 3 3 4 5 3 . 1 . . . 1 2 2 2 1 . Utility 6 | . 2 3 7 8 8 7 10 9 8 6 7 6 5 6 5 3 2 2 6 8 8 10 3 Weapon 5 | 1 3 4 5 6 6 6 4 5 5 5 5 5 9 8 8 7 7 8 5 3 2 4 . Tool/Special . | . . . . . . . . . . . . . . . . . . . . . . . . Unused Backups 46 | 4 6 . 9 1 . . 5 1 . . 2 2 2 . 2 . . 2 4 5 . 1 . Power 9 | . . . 1 . . . 1 . . . 2 . . . . . . . 2 3 . . . Propulsion 12 | 4 2 . 2 . . . 2 . . . . . . . . . . 2 . . . . . Utility 13 | . 1 . 4 . . . . . . . . 1 1 . 2 . . . 1 2 . 1 . Weapon 11 | . 3 . 2 1 . . 2 1 . . . 1 . . . . . . 1 . . . . Tool/Special 1 | . . . . . . . . . . . . . 1 . . . . . . . . . . Average Slot Usage (%) 93 | . 98 100 99 100 100 95 99 99 99 99 100 97 87 83 93 84 84 98 93 84 84 81 53 Engine 3 | . 14 14 9 11 11 4 . 5 6 5 1 . 1 4 3 . . . . . . . . Core 1 | . . . 1 . . 6 8 1 . . . . 3 . 1 . . . . . . . . Reactor 2 | . . . . . . . . . . . 3 4 . . . 5 10 8 7 4 8 7 1 Treads 9 | . 14 14 11 11 11 11 17 15 13 11 11 11 14 11 9 . . . 8 4 4 3 . Leg 2 | . . . . . . . . . . . . . . . 10 23 21 25 2 . . . . Wheel 12 | . 14 14 21 22 22 22 17 15 13 11 11 10 5 6 . . . . 10 13 12 11 4 Device 15 | . 8 14 13 11 11 7 9 7 13 17 17 18 18 17 17 19 21 28 19 18 16 17 7 Storage 6 | . 14 14 11 11 11 11 9 7 6 5 5 5 5 5 5 5 5 5 4 4 4 3 3 Processor 7 | . . . . . . . . 6 12 11 11 11 11 11 11 11 10 10 12 14 14 13 15 Hackware 1 | . . . . . . . . . . . . 1 5 5 8 . . 1 4 . 2 4 7 Protection 6 | . 5 . 8 11 11 10 9 14 13 16 17 13 2 . 2 . . . 1 4 1 1 1 Energy Gun 1 | . . . . . . . . . . . . . . . . . . 1 . 2 11 11 5 Ballistic Gun 16 | . 27 28 21 22 22 22 26 23 20 17 17 15 10 11 10 16 15 11 11 13 1 . . Peak Build Rating 172 | 7 13 13 23 23 23 24 31 36 46 51 54 72 76 71 107 100 102 125 153 164 164 172 132 Average Rating 74 | 6 12 13 20 23 23 22 28 35 45 50 53 62 70 69 93 91 102 118 139 152 149 154 88 On Entrance 61 | 6 7 13 13 23 23 23 24 31 36 46 51 54 68 69 70 95 94 102 119 146 158 151 57 Avg Prop Armor Cover (%) 11 | 14 9 10 8 7 7 7 13 12 12 11 11 12 18 15 14 . . . 11 7 14 12 . Naked Turns . | . . . . . . . . . . . . . . . . . . . . . . . . Heaviest Build 179 | 13 34 32 64 64 64 62 65 78 81 83 88 95 73 76 87 90 99 123 176 179 178 172 73 Greatest Support 135 | 16 20 20 32 28 28 28 46 32 32 32 32 32 83 55 100 100 100 135 130 52 52 62 60 Greatest Overweight (x) 10 | 1 2 1 4 2 2 2 3 2 2 2 2 5 5 6 6 . . 1 4 3 10 4 1 Average Overweight (x) 1 | . 1 1 1 2 2 2 1 2 2 2 2 2 2 3 1 . . . 2 3 2 1 . Largest Inventory Capacity 25 | 8 15 15 20 20 20 20 20 20 20 20 20 20 20 20 20 20 20 20 25 25 25 25 5 Average Capacity 20 | 8 12 15 19 20 20 20 20 20 20 20 20 20 20 20 20 20 20 20 21 25 25 23 5 Most Carried 25 | 7 13 12 20 20 20 20 20 20 20 18 20 20 20 20 20 19 14 20 25 25 25 25 5 Average Carried 18 | 4 9 12 17 19 20 18 19 19 18 17 19 17 17 19 19 17 14 17 20 24 22 21 3 Final Capacity 25 | 8 15 15 20 20 20 20 20 20 20 20 20 20 20 20 20 20 20 20 25 25 25 5 5 Final Carried 25 | 4 12 12 20 20 20 19 20 20 19 18 20 16 19 19 19 15 14 20 24 20 25 5 3 Class Distribution -------------------- 26% | Mutant 17% | Scavenger-Tank 17% | Tank 11% | Scavenger-Gunner 7% | Scavenger-Mutant 4% | Hacker-Skirmisher 3% | Scavenger-Skirmisher 3% | Infiltrator-Gunner Dominant Class ---------------- Mutant | -10/Materials Mutant | -10/Mines Mutant | -9/Materials Mutant | -9/Mines Mutant | -9/Exiles Mutant | -8/Mines Tank | -8/Materials Tank | -7/Factory Tank | -6/Factory Tank | -5/Factory Scavenger-Tank | -5/Waste Scavenger-Tank | -5/Factory Scavenger-Mutant | -5/Upper Caves Skirmisher | -5/Upper Caves Hacker-Skirmisher | -5/Warlord Scavenger-Gunner | -4/Proximity Caves Scavenger-Gunner | -4/Factory Scavenger-Gunner | -4/DSF Infiltrator-Gunner | -3/Research Scavenger-Tank | -3/Armory Scavenger-Gunner | -3/Lab Scavenger-Gunner | -2/Research Hacker-Mutant | -2/Testing Resources | -11 -10 -10 -9 -9 -9 -8 -8 -7 -6 -5 -5 -5 -5 -5 -5 -4 -4 -4 -3 -3 -3 -2 -2 ----------- Run | Yrd Mat Min Mat Min Exi Min Mat Fac Fac Fac Was Fac Upp Upp War Pro Fac DSF Res Arm Lab Res Tes Matter Collected 11814 | 247 422 63 1127 135 . 159 783 186 140 15 54 1269 486 175 554 444 . 644 1904 2063 85 456 403 Remotely 5621 | . . . . . . . . . . . 54 457 415 175 344 283 . 617 1315 1697 . 264 . Salvage Created 14177 | 102 701 95 1943 138 . 158 888 265 123 35 . 1582 238 385 288 393 . 773 2097 2921 85 256 711 Parts 743 | 6 39 8 119 15 . 9 44 12 3 5 . 79 14 6 4 18 . 27 148 138 7 11 31 Haulers Intercepted 17 | . 2 . 6 . . . 5 . . . . 2 . . . . . . 1 . . . 1 Recyclers Shooed 11 | 1 2 . 2 . . . 1 . 1 . . 3 . . . . . . 1 . . . . Parts Field Recycled . | . . . . . . . . . . . . . . . . . . . . . . . . Retrieved Matter . | . . . . . . . . . . . . . . . . . . . . . . . . Parts Self-Destructed 31 | . . . . . . . . . . . . . 12 3 . 16 . . . . . . . Prevented 1 | . . . . . . . . . . . . . 1 . . . . . . . . . . Parts Restored . | . . . . . . . . . . . . . . . . . . . . . . . . Kills | -11 -10 -10 -9 -9 -9 -8 -8 -7 -6 -5 -5 -5 -5 -5 -5 -4 -4 -4 -3 -3 -3 -2 -2 ------- Run | Yrd Mat Min Mat Min Exi Min Mat Fac Fac Fac Was Fac Upp Upp War Pro Fac DSF Res Arm Lab Res Tes Combat Hostiles Destroyed 228 | . 14 6 35 6 . 3 12 3 . . . 20 4 1 3 13 . 15 29 55 1 3 5 Melee 6 | . . . . . . . 1 . . . . . 2 . . . . . 1 . . . 2 Guns 169 | . 14 6 35 6 . 3 11 3 . . . 20 2 . 3 8 . 7 17 28 1 2 3 Cannons 11 | . . . . . . . . . . . . . . 1 . . . . 5 4 . 1 . AOE 41 | . . . . . . . . . . . . . . . . 5 . 8 5 23 . . . Classes Destroyed 24 | 2 5 . 3 . . 1 . 1 . . . 3 1 1 3 1 . . 1 2 . . . Worker 18 | . 1 . 4 1 . . . . . 1 . 2 . . . . . . 6 . . . 3 Builder 10 | . 1 . . 1 . 1 1 1 . 1 . . . . . . . . 2 . . . 2 Tunneler 3 | 1 . . . 1 . . . . . . . . . . . . . . 1 . . . . Hauler 17 | . 2 . 6 . . . 5 . . . . 2 . . . . . . 1 . . . 1 Recycler 12 | 1 2 . 2 . . . 2 1 1 . . 1 . . . . . . 1 . . . 1 Mechanic 2 | . . . . . . . . . . . . . . . . . . . . 2 . . . Operator 1 | . . . . . . . . . . . . . . . . . . . 1 . . . . Drone 2 | . . . . . . . . . . . . . . . . 2 . . . . . . . Watcher 7 | . . . 3 . . . 1 . . . . . . . . . . . . 3 . . . Swarmer 58 | . 6 6 11 6 . . 4 . . . . . 1 . . 5 . 3 7 9 . . . Saboteur 1 | . . . . . . . . . . . . . . . . . . . . 1 . . . Grunt 56 | . 8 . 13 . . 2 5 . . . . 5 1 . . 1 . 4 3 11 . 1 2 Brawler 4 | . . . 1 . . . . 1 . . . . . . . . . . . 2 . . . Duelist 6 | . . . . . . 1 . . . . . . . . . . . . . 5 . . . Protector 3 | . . . . . . . . . . . . . . . 2 . . . . 1 . . . Sentry 25 | . . . 10 . . . 3 . . . . 4 1 1 . 1 . 1 1 3 . . . Demolisher 1 | . . . . . . . . . . . . . . . 1 . . . . . . . . Specialist 11 | . . . . . . . . . . . . 2 . . . . . 4 . 5 . . . Hunter 13 | . . . . . . . . . . . . 1 . . . 2 . 2 2 5 . 1 . Programmer 41 | . . . . . . . . 2 . . . 7 . . . 2 . . 15 12 . . 3 Heavy 3 | . . . . . . . . . . . . 1 . . . . . 1 . 1 . . . Behemoth 2 | . . . . . . . . . . . . . 1 . . . . . 1 . . . . Tracker 1 | . . . . . . . . . . . . . . . . . . . . . . 1 . Decomposer 1 | . . . . . . . . . . . . . . 1 . . . . . . . . . Packrat 3 | . . . . . . . . . . . . . . 3 . . . . . . . . . Samaritan 1 | . . . . . . . . . . . . . . 1 . . . . . . . . . Thug 1 | . . . . . . . . . . . . . . . 1 . . . . . . . . Mutant 1 | . . . . . . . . . . . . . . . 1 . . . . . . . . Best Kill Streak 11 | 2 7 3 5 3 . 3 5 1 1 2 . 3 2 1 2 4 . 8 5 11 1 1 4 Combat Bots Only 9 | . 6 3 5 3 . 3 4 1 . . . 3 2 1 2 4 . 8 4 9 1 1 2 Max Kills in Single Turn 4 | 1 2 1 2 2 . 1 2 1 1 2 . 1 1 1 2 2 . 3 2 4 1 1 1 Gunslinging 1 | . . . 1 1 . . 1 . . . . . . . . . . . . . . . . Exploded 4 | . . . . . . . . . . . . . . . . 2 . 3 2 4 . . . Melee 1 | . . . . . . . 1 . . . . . 1 . . . . . 1 . . . 1 Uniques/NPCs Destroyed 1 | . . . . . . . . . . . . . . . . . . . . . 1 . . A5 (-3/Lab) Combat | -11 -10 -10 -9 -9 -9 -8 -8 -7 -6 -5 -5 -5 -5 -5 -5 -4 -4 -4 -3 -3 -3 -2 -2 -------- Run | Yrd Mat Min Mat Min Exi Min Mat Fac Fac Fac Was Fac Upp Upp War Pro Fac DSF Res Arm Lab Res Tes Hostile Shots Fired 2046 | . 60 22 157 38 . 32 42 6 . . . 176 62 6 40 74 . 97 264 481 31 234 224 Missed 580 | . 16 5 41 6 . 8 7 1 . . . 53 15 4 15 27 . 24 96 147 3 40 72 Hits 1466 | . 44 17 116 32 . 24 35 5 . . . 123 47 2 25 47 . 73 168 334 28 194 152 Melee 35 | . . . . . . 3 . 1 . . . . . . . . . . 5 10 . 16 . Projectile 1431 | . 44 17 116 32 . 21 35 4 . . . 123 47 2 25 47 . 73 163 324 28 178 152 AOE 2 | . . . . . . . . . . . . 1 . . 1 . . . . . . . . Critical Strikes 76 | . 2 . 5 . . 2 1 1 . . . 9 . . . 4 . 4 9 13 . 17 9 Actively Blocked 14 | . . . . . . . . . . . . 1 . . . . . . . 6 . 6 1 Part Disruptions 4 | . . . . . . . . . . . . . . . . . . 3 . 1 . . . Damage Taken 26268 | . 409 136 1376 253 . 419 460 57 36 . . 2712 958 46 423 700 . 1033 3318 4790 720 5284 3138 Core 2699 | . 93 15 110 40 . 15 61 . . . . 214 105 . 14 62 . 80 278 131 24 413 1044 Absorbed by Shields 4146 | . 54 . . . . . 29 21 14 . . 397 110 . 68 203 . 360 736 1669 . . 485 Reduced by Siege Mode 580 | . . . . . . . . . . . . . . . . . . . 6 265 61 248 . Redirected to Shielding 510 | . . . . . . . . . . . . 116 16 . 142 16 . . . . . . 220 Regen/Repaired (Parts) 1024 | . 132 . 499 . . . 115 . . . . 65 . . 187 . . . 26 . . . . Core Remaining (%) 80 | 100 . 56 . . . 58 88 100 100 . . . . . . 60 . 93 . . 66 . . Volleys Fired 831 | 4 54 9 118 23 . 14 42 14 10 1 . 105 15 16 27 33 . 27 78 118 54 57 12 Largest 4 | 2 2 2 2 2 . 2 3 3 3 3 . 3 3 3 3 3 . 3 4 4 3 3 3 Hottest 282 | 40 46 46 46 46 . 46 69 69 69 69 . 140 155 163 91 99 . 165 214 210 160 226 282 Shots Fired 2029 | 8 108 18 235 46 . 28 126 43 30 3 . 282 30 36 82 83 . 69 258 335 84 92 33 Gun 1903 | 8 108 18 235 46 . 28 126 43 30 3 . 281 28 32 81 75 . 63 204 307 84 70 33 Cannon 91 | . . . . . . . . . . . . 1 2 4 1 . . 3 51 7 . 22 . Launcher 34 | . . . . . . . . . . . . . . . . 8 . 3 2 21 . . . Special 1 | . . . . . . . . . . . . . . . . . . . 1 . . . . Kinetic 1658 | 8 108 18 235 46 . 28 126 43 30 3 . 281 28 32 81 75 . 47 213 225 23 8 . Thermal 222 | . . . . . . . . . . . . 1 2 4 1 . . 3 25 89 59 5 33 Explosive 34 | . . . . . . . . . . . . . . . . 8 . 3 2 21 . . . Electromagnetic 81 | . . . . . . . . . . . . . . . . . . . . . 2 79 . Entropic 33 | . . . . . . . . . . . . . . . . . . 16 17 . . . . Robot Hit Streak 60 | 4 14 4 17 7 . 10 14 12 20 3 . 21 10 17 25 9 . 16 20 60 19 23 11 Robot Miss Streak 7 | 1 3 2 3 3 . 1 2 2 2 . . 4 3 2 2 3 . 3 7 3 2 5 1 Penetration Max 2 | . . . . . . . . . . . . 1 . . 1 . . . 2 1 . . . Secondary Targets 17 | . . 3 2 1 . . 2 . . . . . . . 1 . . 2 3 2 . 1 . Max Gunslinging Chain 2 | . . 1 1 1 . . 2 . . . . . . . 1 . . 1 1 1 . 1 . Capacitor 21 | . . . . . . . . . . . . . . . . . . . . . . 21 . Shots Hit Robots 1490 | 5 76 9 178 29 . 23 86 32 26 1 . 221 26 23 69 52 . 48 173 229 70 72 42 Core Hits 674 | 5 30 6 71 10 . 9 34 12 9 2 . 85 11 11 30 26 . 43 78 146 16 21 19 Critical Kills 28 | . . . . . . . 2 . . . . . . . . . . . 21 5 . . . Critical Parts Destroyed 53 | . 1 . 2 . . . . . . . . . . . 3 2 . 3 35 7 . . . Critical Strikes 88 | . 1 . 2 . . . 2 . . . . . 1 . 3 2 . 4 57 12 . 2 2 Burn 1 | . . . . . . . . . . . . . . . . . . . . . . . 1 Meltdown 1 | . . . . . . . . . . . . . . . . . . . 1 . . . . Destroy 76 | . 1 . 2 . . . 2 . . . . . . . 3 2 . 1 53 12 . . . Blast 2 | . . . . . . . . . . . . . . . . . . . . . . 2 . Impale 2 | . . . . . . . . . . . . . 1 . . . . . . . . . 1 Detonate 6 | . . . . . . . . . . . . . . . . . . 3 3 . . . . Melee Attacks 67 | . . . 4 . . . 1 . . . . 7 4 . . . . 2 17 12 2 . 18 Impact . | . . . . . . . . . . . . . . . . . . . . . . . . Slashing 5 | . . . 4 . . . 1 . . . . . . . . . . . . . . . . Piercing 62 | . . . . . . . . . . . . 7 4 . . . . 2 17 12 2 . 18 Sneak Attacks 11 | . . . . . . . . . . . . . . . . . . . 5 . . . 6 Combat Hostiles . | . . . . . . . . . . . . . . . . . . . . . . . . Follow-up Attacks . | . . . . . . . . . . . . . . . . . . . . . . . . Damage Inflicted 37836 | 43 1198 137 2788 471 . 347 1292 492 421 33 . 3809 582 490 2087 1827 . 2212 4545 10427 1468 1574 1593 Guns 25971 | 43 1198 137 2788 471 . 347 1281 492 421 33 . 3775 359 452 2087 1128 . 1079 1910 5202 1468 521 779 Cannons 2377 | . . . . . . . . . . . . 34 80 38 . . . 38 1223 283 . 681 . Explosions 7870 | . . . . . . . . . . . . . . . . 699 . 1095 762 4942 . 372 . Melee 1597 | . . . . . . . . . . . . . 133 . . . . . 650 . . . 814 Ramming 21 | . . . . . . . 11 . . . . . 10 . . . . . . . . . . Kinetic 21781 | 43 1198 137 2788 471 . 347 1281 492 421 33 . 3775 359 452 2087 1128 . 601 1847 3458 252 611 . Thermal 6156 | . . . . . . . . . . . . 34 80 38 . . . 283 1206 2027 1216 493 779 Explosive 6915 | . . . . . . . . . . . . . . . . 699 . 850 424 4942 . . . Electromagnetic 491 | . . . . . . . . . . . . . . . . . . . 21 . . 470 . Impact . | . . . . . . . . . . . . . . . . . . . . . . . . Slashing . | . . . . . . . . . . . . . . . . . . . . . . . . Piercing 1597 | . . . . . . . . . . . . . 133 . . . . . 650 . . . 814 Entropic 875 | . . . . . . . . . . . . . . . . . . 478 397 . . . . Highest Corruption 36 | . . . . . . . . 2 . . . 14 14 14 14 1 . 1 15 23 28 26 36 Average Corruption 11 | . . . . . . . . 1 . . . 9 14 14 14 1 . 1 9 13 26 17 28 Corruption Purged 12 | . . . . . . . . . . . . . . . . . . . 10 . . 2 . Corruption Blocked . | . . . . . . . . . . . . . . . . . . . . . . . . Effects 343 | . . . . . . . . 11 . . . 58 38 16 2 5 . 2 51 95 26 8 31 Message Errors 66 | . . . . . . . . 1 . . . 11 5 4 . 1 . . 15 18 3 1 7 Matter Fused 64 | . . . . . . . . 2 . . . 8 12 2 1 2 . 1 9 16 2 2 7 Heat Flow Errors 29 | . . . . . . . . 2 . . . 2 3 2 . . . . 4 10 4 . 2 Energy Discharges 38 | . . . . . . . . 2 . . . 8 3 3 . 1 . . 6 11 4 . . Parts Rejected 5 | . . . . . . . . 1 . . . 1 1 . . . . . . . 1 1 . Parts Fused 4 | . . . . . . . . . . . . 1 1 . . . . . . 2 . . . Data Loss (minor) 47 | . . . . . . . . 2 . . . 8 4 3 . . . . 9 10 7 1 3 Data Loss (major) 13 | . . . . . . . . . . . . 5 2 . . . . 1 1 4 . . . Misfires 22 | . . . . . . . . 1 . . . 3 2 1 1 . . . 3 6 2 1 2 Alerts 11 | . . . . . . . . . . . . 2 2 . . 1 . . 2 3 . . 1 Misdirections 13 | . . . . . . . . . . . . 1 1 . . . . . . 4 . 1 6 Weapon Failures 31 | . . . . . . . . . . . . 8 2 1 . . . . 2 11 3 1 3 Overload Shots . | . . . . . . . . . . . . . . . . . . . . . . . . Overflow Damage 676 | . . . . . . . . . . . . . . . . 20 . . 122 319 . 27 188 Projectiles 78 | . . . . . . . . . . . . . . . . . . . 51 . . 27 . Explosions 348 | . . . . . . . . . . . . . . . . 20 . . 9 319 . . . Melee 250 | . . . . . . . . . . . . . . . . . . . 62 . . . 188 Knockbacks 14 | . . . . . . . . . . . . . . . . . . . 7 . . 7 . Impact . | . . . . . . . . . . . . . . . . . . . . . . . . Kinetic 14 | . . . . . . . . . . . . . . . . . . . 7 . . 7 . Secondary . | . . . . . . . . . . . . . . . . . . . . . . . . Self-Inflicted Damage 601 | . . . . . . . . . . . . . . . . . . . 163 318 . 120 . Shots 10 | . . . . . . . . . . . . . . . . . . . 2 6 . 2 . Rammed 4 | . . . . . . . 1 . . . . . 2 . . . . . . . . 1 . Targets Rammed 5 | . . . . . . . 2 . . . . . 2 . . . . . . . . 1 . Kicked . | . . . . . . . . . . . . . . . . . . . . . . . . Crushed 1 | . . . . . . . 1 . . . . . . . . . . . . . . . . Highest Temperature 403 | . 15 . 5 . . 31 44 262 18 . . 268 149 201 11 163 . 58 360 403 401 392 236 Average Temperature 70 | . 4 . 5 . . 17 12 69 7 . . 34 58 107 5 63 . 18 82 100 116 136 44 Received Heat Transfer 2775 | . 178 . 510 . . 207 222 6 9 . . 266 171 . 78 39 . 113 126 317 . 156 377 Effects 9 | . . . . . . . . . . . . . . . . . . . . 4 1 4 . Energy Bleed 3 | . . . . . . . . . . . . . . . . . . . . 2 . 1 . Interference 4 | . . . . . . . . . . . . . . . . . . . . 2 . 2 . Matter Decay 1 | . . . . . . . . . . . . . . . . . . . . . 1 . . Damage (minor) 1 | . . . . . . . . . . . . . . . . . . . . . . 1 . Siege Activations 21 | . . . . . . . . . . . . . . . . . . . 3 15 1 2 . Total Turns 488 | . . . . . . . . . . . . . . . . . . . 12 279 103 94 . Longest Duration 103 | . . . . . . . . . . . . . . . . . . . 9 58 103 77 . Martial Activations . | . . . . . . . . . . . . . . . . . . . . . . . . Shielding Activations . | . . . . . . . . . . . . . . . . . . . . . . . . Robots Disrupted 4 | . . . . . . . . . . . . . . . . . . . . . . 4 . Combat Hostiles 4 | . . . . . . . . . . . . . . . . . . . . . . 4 . Robots Corrupted . | . . . . . . . . . . . . . . . . . . . . . . . . Combat Hostiles . | . . . . . . . . . . . . . . . . . . . . . . . . Parts Fried 3 | . . . . . . . . . . . . . . . . . . . . . . 3 . Impact Corruptions . | . . . . . . . . . . . . . . . . . . . . . . . . Robots Melted 1 | . . . . . . . . . . . . . . . . . . . 1 . . . . Combat Hostiles 1 | . . . . . . . . . . . . . . . . . . . 1 . . . . Parts Melted 8 | . . . . . . . . 1 . . . . . . . . . . . 5 . . 2 Heat Transferred 6602 | . . . . . . . . . . . . 37 74 37 . . . 237 990 2257 1572 325 1073 Parts Sabotaged . | . . . . . . . . . . . . . . . . . . . . . . . . Parts Stolen . | . . . . . . . . . . . . . . . . . . . . . . . . Parts Stripped . | . . . . . . . . . . . . . . . . . . . . . . . . Power Chain Reactions 2 | . . . . . . . . . . . . . . . . . . . . . . 2 . Alert | -11 -10 -10 -9 -9 -9 -8 -8 -7 -6 -5 -5 -5 -5 -5 -5 -4 -4 -4 -3 -3 -3 -2 -2 ------- Run | Yrd Mat Min Mat Min Exi Min Mat Fac Fac Fac Was Fac Upp Upp War Pro Fac DSF Res Arm Lab Res Tes Maximum Alert Level 4 | . 1 . 1 . . . . . . . . 1 . . . . . 2 2 4 . . . Low Security (%) 64 | 100 64 100 87 100 . 100 100 100 100 100 100 72 . . . . 100 41 1 12 . 100 100 Level 1 21 | . 35 . 12 . . . . . . . . 27 . . . . . 54 48 32 . . . Level 2 8 | . . . . . . . . . . . . . . . . . . 3 50 8 . . . Level 3 4 | . . . . . . . . . . . . . . . . . . . . 31 . . . Level 4 1 | . . . . . . . . . . . . . . . . . . . . 15 . . . Level 5 . | . . . . . . . . . . . . . . . . . . . . . . . . High Security . | . . . . . . . . . . . . . . . . . . . . . . . . Max Security . | . . . . . . . . . . . . . . . . . . . . . . . . Sterilizations 1 | . . . . . . . . . . . . . . . . . . 1 . . . . . Peak Influence 1570 | 5 287 150 272 187 . 50 116 30 5 12 . 352 . . . . 22 463 590 1570 . 30 67 Initial 296 | . . 45 35 102 . . 5 9 . . . . . . . . 22 4 260 296 . . . Average 196 | 2 133 93 123 81 . 27 25 4 . . . 140 . . . . 13 166 392 623 . 3 10 Influence Increases 7753 | 10 490 155 1112 170 . 75 379 100 5 12 . 1024 90 20 45 290 5 479 1002 1935 . 122 233 Destroy 0b10 Robot/C 4500 | . 280 120 700 120 . 60 240 60 . . . 460 80 20 20 220 . 300 580 1080 . 60 100 Destroy 0b10 Robot/NC 375 | 10 30 . 75 15 . 5 45 10 5 10 . 25 . . 10 10 . . 60 30 . . 35 Destroy Leader 908 | . 64 20 188 20 . 10 62 30 . . . 134 10 . . 30 . 30 102 186 . 20 2 Allied During Kill 27 | . . . . . . . . . . . . 27 . . . . . . . . . . . Successful Hack 235 | . 20 . 65 . . . 12 . . 2 . 97 . . . . 5 . 34 . . . . Disable Machine 375 | . 30 . . 15 . . 15 . . . . 45 . . . . . 15 45 195 . . 15 Destroy Structure 718 | . 6 . 9 . . . 5 . . . . 26 . . . . . 104 136 384 . 42 6 Partial Spotted 15 | . . . . . . . . . . . . . . . . . . . . 15 . . . Lose Combat Pursuer 600 | . 60 15 75 . . . . . . . . 210 . . 15 30 . 30 45 45 . . 75 Influence Decreases 7714 | 10 372 183 940 432 . 60 374 120 5 12 . 697 417 20 29 270 34 23 899 931 1570 122 194 Entered New Map 2507 | . . 73 55 160 . . 10 11 . . . . 122 . . 16 14 3 203 270 1570 . . Time Decay 4406 | 10 362 110 620 272 . 50 354 109 5 12 . 508 285 20 29 234 20 . 616 601 . 66 123 Lost Part 507 | . 10 . 20 . . 10 10 . . . . 140 10 . . 20 . 20 80 60 . 56 71 Lost Ally 59 | . . . 10 . . . . . . . . 49 . . . . . . . . . . . Purge Threat 235 | . . . 235 . . . . . . . . . . . . . . . . . . . . Squads Dispatched 66 | . 3 . 1 . . . 9 4 2 . . 9 . . . . . 1 8 15 . 4 10 Investigation 6 | . 1 . 1 . . . 2 . 1 . . . . . . . . . . . . . 1 Extermination 17 | . . . . . . . . 1 1 . . 3 . . . . . . 6 5 . . 1 Reinforcement 29 | . 2 . . . . . 4 1 . . . 6 . . . . . 1 2 6 . 3 4 Assault 4 | . . . . . . . . . . . . . . . . . . . . 4 . . . Garrison 8 | . . . . . . . 3 2 . . . . . . . . . . . . . . 3 Intercept 2 | . . . . . . . . . . . . . . . . . . . . . . 1 1 Searches Triggered . | . . . . . . . . . . . . . . . . . . . . . . . . Construction Impeded 1 | . . . . . . . . . . . . . . . . . . . 1 . . . . Haulers Reinforced 5 | . . . . . . . . 1 . . . 2 . . . . . . 1 . . 1 . Active Scanning Responses . | . . . . . . . . . . . . . . . . . . . . . . . . Cargo Convoy Interrupts 1 | . . . . . . . . . . . . 1 . . . . . . . . . . . Stealth | -11 -10 -10 -9 -9 -9 -8 -8 -7 -6 -5 -5 -5 -5 -5 -5 -4 -4 -4 -3 -3 -3 -2 -2 --------- Run | Yrd Mat Min Mat Min Exi Min Mat Fac Fac Fac Was Fac Upp Upp War Pro Fac DSF Res Arm Lab Res Tes Distress Signals 26 | . 1 . 5 . . . 2 1 1 . . 5 . . . . . . . 1 . 6 4 Communications Jammed 13 | . . . . . . . . . . . . 10 . . . . . 1 2 . . . . Distress Signals 12 | . . . . . . . . . . . . 10 . . . . . . 2 . . . . Times Spotted 424 | . 26 7 58 6 . 3 20 12 8 . . 45 4 1 47 14 . 17 31 76 1 21 27 Peak Tracking Total 16 | . 6 3 6 3 . 3 3 2 3 . . 6 3 1 16 4 . 10 4 10 1 7 13 Tactical Retreats 25 | . 1 1 5 . . . . . . . . 8 . . 1 1 . 1 3 3 . . 1 Traps | -11 -10 -10 -9 -9 -9 -8 -8 -7 -6 -5 -5 -5 -5 -5 -5 -4 -4 -4 -3 -3 -3 -2 -2 ------- Run | Yrd Mat Min Mat Min Exi Min Mat Fac Fac Fac Was Fac Upp Upp War Pro Fac DSF Res Arm Lab Res Tes Traps Triggered 18 | . 1 . 2 . . . 6 . 1 1 . 3 . . . . . 1 1 1 . . 1 Indirectly 1 | . . . . . . . . . . . . . . . . . . . 1 . . . . Trap Hack Attempts . | . . . . . . . . . . . . . . . . . . . . . . . . Triggered . | . . . . . . . . . . . . . . . . . . . . . . . . Disarmed . | . . . . . . . . . . . . . . . . . . . . . . . . Reprogrammed . | . . . . . . . . . . . . . . . . . . . . . . . . Reused . | . . . . . . . . . . . . . . . . . . . . . . . . Traps Extracted . | . . . . . . . . . . . . . . . . . . . . . . . . Installed . | . . . . . . . . . . . . . . . . . . . . . . . . Triggered . | . . . . . . . . . . . . . . . . . . . . . . . . Machines | -11 -10 -10 -9 -9 -9 -8 -8 -7 -6 -5 -5 -5 -5 -5 -5 -4 -4 -4 -3 -3 -3 -2 -2 ---------- Run | Yrd Mat Min Mat Min Exi Min Mat Fac Fac Fac Was Fac Upp Upp War Pro Fac DSF Res Arm Lab Res Tes Machines Disabled 31 | . 2 . . 1 . . 1 . . . . 3 . . 1 . . 1 3 13 5 . 1 Max in Single Turn 1 | . 1 . . 1 . . 1 . . . . 1 . . 1 . . 1 1 1 1 . 1 Machines Repaired . | . . . . . . . . . . . . . . . . . . . . . . . . Machines Dismantled 2 | . . . . . . . . . . . . . . . 1 . . . . . 1 . . Machines Sabotaged . | . . . . . . . . . . . . . . . . . . . . . . . . Overloaded Fab Kills . | . . . . . . . . . . . . . . . . . . . . . . . . Hacking | -11 -10 -10 -9 -9 -9 -8 -8 -7 -6 -5 -5 -5 -5 -5 -5 -4 -4 -4 -3 -3 -3 -2 -2 --------- Run | Yrd Mat Min Mat Min Exi Min Mat Fac Fac Fac Was Fac Upp Upp War Pro Fac DSF Res Arm Lab Res Tes Machines Accessed 65 | . 7 . 16 . 1 . 9 1 . 1 . 10 1 . 3 . 1 . 9 3 1 1 1 Terminals 36 | . 6 . 12 . . . 5 1 . . . 3 . . . . 1 . 5 2 . . 1 Fabricators 4 | . . . . . . . . . . . . 3 . . . . . . . 1 . . . Repair Stations 10 | . 1 . 2 . . . 2 . . . . 3 . . . . . . 1 . . 1 . Recycling Units . | . . . . . . . . . . . . . . . . . . . . . . . . Scanalyzers 8 | . . . 2 . . . 2 . . 1 . 1 . . . . . . 2 . . . . Garrison Access 1 | . . . . . . . . . . . . . . . . . . . 1 . . . . Total Hacks 179 | . 29 . 63 . 1 . 21 2 . 6 . 19 1 . 9 . 3 . 17 5 1 1 1 Successful 104 | . 13 . 43 . 1 . 14 . . 4 . 9 1 . 9 . 1 . 5 3 1 . . Failed 71 | . 15 . 19 . . . 6 2 . 1 . 10 . . . . 2 . 12 2 . 1 1 Catastrophic 15 | . 2 . 2 . . . 1 1 . . . 2 . . . . . . 5 1 . 1 . Database Lockouts 4 | . 1 . 1 . . . 1 . . 1 . . . . . . . . . . . . . Manual 59 | . 19 . 23 . . . 11 . . . . 3 . . . . . . 2 1 . . . Terminals 105 | . 24 . 44 . . . 13 2 . . . 9 . . . . 3 . 6 3 . . 1 Fabricators 6 | . . . . . . . . . . . . 4 . . . . . . . 2 . . . Repair Stations 31 | . 5 . 12 . . . 4 . . . . 5 . . . . . . 4 . . 1 . Recycling Units . | . . . . . . . . . . . . . . . . . . . . . . . . Scanalyzers 24 | . . . 7 . . . 4 . . 6 . 1 . . . . . . 6 . . . . Garrison Access 1 | . . . . . . . . . . . . . . . . . . . 1 . . . . Terminal Hacks 41 | . 5 . 17 . 1 . 2 . . . . 3 1 . 9 . 1 . . 1 1 . . Record 4 | . . . . . 1 . . . . . . . . . 2 . . . . . 1 . . Part Schematic 1 | . . . . . . . . . . . . 1 . . . . . . . . . . . Robot Analysis 4 | . . . 4 . . . . . . . . . . . . . . . . . . . . Prototype ID Bank 13 | . 2 . 3 . . . 1 . . . . 1 . . 6 . . . . . . . . Open Door 2 | . . . . . . . . . . . . . 1 . 1 . . . . . . . . Open DSF 1 | . . . . . . . . . . . . . . . . . 1 . . . . . . Branch Access Points 2 | . . . 1 . . . 1 . . . . . . . . . . . . . . . . Repair Station Index 1 | . . . 1 . . . . . . . . . . . . . . . . . . . . Recycling Unit Index 1 | . . . 1 . . . . . . . . . . . . . . . . . . . . Alert Level 3 | . . . 2 . . . . . . . . . . . . . . . . 1 . . . Unreport Threat 2 | . . . 2 . . . . . . . . . . . . . . . . . . . . Locate Traps 1 | . . . . . . . . . . . . 1 . . . . . . . . . . . Transport Status 2 | . 1 . 1 . . . . . . . . . . . . . . . . . . . . Recall Investigation 1 | . 1 . . . . . . . . . . . . . . . . . . . . . . Zone Layout 3 | . 1 . 2 . . . . . . . . . . . . . . . . . . . . Fabricator Hacks 4 | . . . . . . . . . . . . 2 . . . . . . . 2 . . . Network Status 1 | . . . . . . . . . . . . 1 . . . . . . . . . . . Load Schematic 1 | . . . . . . . . . . . . . . . . . . . . 1 . . . Build 2 | . . . . . . . . . . . . 1 . . . . . . . 1 . . . Repair Station Hacks 22 | . 4 . 12 . . . 2 . . . . 2 . . . . . . 2 . . . . Scan Component 12 | . 2 . 7 . . . 1 . . . . 1 . . . . . . 1 . . . . Repair 10 | . 2 . 5 . . . 1 . . . . 1 . . . . . . 1 . . . . Recycling Unit Hacks . | . . . . . . . . . . . . . . . . . . . . . . . . Scanalyzer 17 | . . . 6 . . . 4 . . 4 . . . . . . . . 3 . . . . Insert Component 6 | . . . 3 . . . 1 . . 1 . . . . . . . . 1 . . . . Analyze 7 | . . . 3 . . . 1 . . 2 . . . . . . . . 1 . . . . Retrieve Study 4 | . . . . . . . 2 . . 1 . . . . . . . . 1 . . . . Garrison Access Hacks . | . . . . . . . . . . . . . . . . . . . . . . . . Unauthorized Hacks 20 | . 4 . 8 . . . 6 . . . . 2 . . . . . . . . . . . Terminals 19 | . 4 . 8 . . . 5 . . . . 2 . . . . . . . . . . . Assimilate 1 | . . . 1 . . . . . . . . . . . . . . . . . . . . Botnet 18 | . 4 . 7 . . . 5 . . . . 2 . . . . . . . . . . . Fabricators . | . . . . . . . . . . . . . . . . . . . . . . . . Repair Stations 1 | . . . . . . . 1 . . . . . . . . . . . . . . . . Patch 1 | . . . . . . . 1 . . . . . . . . . . . . . . . . Recycling Units . | . . . . . . . . . . . . . . . . . . . . . . . . Scanalyzers . | . . . . . . . . . . . . . . . . . . . . . . . . Garrison Access . | . . . . . . . . . . . . . . . . . . . . . . . . Data Cores Recovered 2 | . . . . . . . . . 1 . . . . . . . . . 1 . . . . Used 1 | . . . . . . . . . . . . . . . . . . . 1 . . . . Hacking Detections 51 | . 7 . 14 . . . 8 1 . . . 9 . . . . 1 . 8 2 . 1 . Full Trace Events 2 | . 1 . 1 . . . . . . . . . . . . . . . . . . . . Feedback Events . | . . . . . . . . . . . . . . . . . . . . . . . . Feedback Blocked . | . . . . . . . . . . . . . . . . . . . . . . . . Robot Schematics Acquired . | . . . . . . . . . . . . . . . . . . . . . . . . Robots Built . | . . . . . . . . . . . . . . . . . . . . . . . . Authchips . | . . . . . . . . . . . . . . . . . . . . . . . . Time . | . . . . . . . . . . . . . . . . . . . . . . . . Total Robot Build Rating . | . . . . . . . . . . . . . . . . . . . . . . . . Part Schematics Acquired 7 | . . . 3 . . . 1 . . 1 . 1 . . . . . . 1 . . . . Parts Built 3 | . . . . . . . . . . . . 2 . . . . . . . 1 . . . Authchips 1 | . . . . . . . . . . . . . . . . . . . . 1 . . . Time 141 | . . . . . . . . . . . . 39 . . . . . . . 102 . . . Total Part Build Rating 22 | . . . . . . . . . . . . 14 . . . . . . . 8 . . . Part Studies Acquired 4 | . . . . . . . 2 . . 1 . . . . . . . . 1 . . . . Parts Repaired 10 | . 2 . 5 . . . 1 . . . . 1 . . . . . . 1 . . . . Time 481 | . 102 . 223 . . . 51 . . . . 86 . . . . . . 19 . . . . Parts Recycled . | . . . . . . . . . . . . . . . . . . . . . . . . Recycled Matter . | . . . . . . . . . . . . . . . . . . . . . . . . Retrieved Matter . | . . . . . . . . . . . . . . . . . . . . . . . . Retrieved Components . | . . . . . . . . . . . . . . . . . . . . . . . . Parts Scanalyzed 6 | . . . 3 . . . 1 . . 1 . . . . . . . . 1 . . . . Part Schematics Acquired 6 | . . . 3 . . . 1 . . 1 . . . . . . . . 1 . . . . Parts Damaged 1 | . . . . . . . . . . . . . . . . . . . 1 . . . . Bothacking | -11 -10 -10 -9 -9 -9 -8 -8 -7 -6 -5 -5 -5 -5 -5 -5 -4 -4 -4 -3 -3 -3 -2 -2 ------------ Run | Yrd Mat Min Mat Min Exi Min Mat Fac Fac Fac Was Fac Upp Upp War Pro Fac DSF Res Arm Lab Res Tes Used RIF Installer . | . . . . . . . . . . . . . . . . . . . . . . . . Robots Hacked . | . . . . . . . . . . . . . . . . . . . . . . . . Non-combat . | . . . . . . . . . . . . . . . . . . . . . . . . Combat . | . . . . . . . . . . . . . . . . . . . . . . . . Robot Hacks Applied . | . . . . . . . . . . . . . . . . . . . . . . . . Relay Couplers Released . | . . . . . . . . . . . . . . . . . . . . . . . . Fabnet Peak Effective % . | . . . . . . . . . . . . . . . . . . . . . . . . Robots Rewired . | . . . . . . . . . . . . . . . . . . . . . . . . Allies Hacked 1 | . . . . . . . . . . . . 1 . . . . . . . . . . . Hacks Repelled 1 | . . . . . . . . . . . . . . . . . . . . . . 1 . Allies | -11 -10 -10 -9 -9 -9 -8 -8 -7 -6 -5 -5 -5 -5 -5 -5 -4 -4 -4 -3 -3 -3 -2 -2 -------- Run | Yrd Mat Min Mat Min Exi Min Mat Fac Fac Fac Was Fac Upp Upp War Pro Fac DSF Res Arm Lab Res Tes Total Allies 21 | . . . 1 . . . . . . . 20 . . . . . . . . . . . . Largest Group 20 | . . . 1 . . . . . . . 20 20 . . . . . . . . . . . Highest-Rated Group 798 | . . . 10 . . . . . . . 798 798 . . . . . . . . . . . Highest-Rated Ally 50 | . . . 10 . . . . . . . 50 50 . . . . . . . . . . . Initial Warlord ECA Mod 9 | . . . . . . . . . . . . . . . . . . . 9 9 9 8 8 Total Orders . | . . . . . . . . . . . . . . . . . . . . . . . . Ally Attacks 34 | . . . . . . . . . . . . 34 . . . . . . . . . . . Total Damage 576 | . . . . . . . . . . . . 576 . . . . . . . . . . . Kills 3 | . . . . . . . . . . . . 3 . . . . . . . . . . . Allies Corrupted 2 | . . . . . . . . . . . . 2 . . . . . . . . . . . Allies Melted 3 | . . . . . . . . . . . . . . 2 . . . . . . . 1 . Intel | -11 -10 -10 -9 -9 -9 -8 -8 -7 -6 -5 -5 -5 -5 -5 -5 -4 -4 -4 -3 -3 -3 -2 -2 ------- Run | Yrd Mat Min Mat Min Exi Min Mat Fac Fac Fac Was Fac Upp Upp War Pro Fac DSF Res Arm Lab Res Tes Active Infowar (turns) 10904 | 12 687 226 524 . . . 481 . 375 144 208 1556 1035 363 1084 501 51 429 1509 1301 6 412 . Optics 2 | . . . . . . . . . . . . . . . 2 . . . . . . . . Sensors 6766 | . . . . . . . . . 375 144 208 1435 1035 363 1084 161 . . 242 1301 6 412 . Structural 3118 | . 507 226 524 . . . 481 . . . . 383 . . . . . 187 810 . . . . Seismic 192 | 12 180 . . . . . . . . . . . . . . . . . . . . . . Jamming 3183 | . . . . . . . . . . 144 . 842 . . . 483 51 429 1234 . . . . ECM 1 | . . . . . . . . . . . . . . . 1 . . . . . . . . Robot Analysis Total 4 | . . . 4 . . . . . . . . . . . . . . . . . . . . Derelict Logs Recovered 7 | . . 3 . 3 . . . . . . . . . 1 . . . . . . . . . Drone Launches . | . . . . . . . . . . . . . . . . . . . . . . . . Drone Recoveries . | . . . . . . . . . . . . . . . . . . . . . . . . Exploration | -11 -10 -10 -9 -9 -9 -8 -8 -7 -6 -5 -5 -5 -5 -5 -5 -4 -4 -4 -3 -3 -3 -2 -2 ------------- Run | Yrd Mat Min Mat Min Exi Min Mat Fac Fac Fac Was Fac Upp Upp War Pro Fac DSF Res Arm Lab Res Tes Turns Passed 18751 | 45 1407 226 2484 601 307 109 1260 792 375 144 208 1809 1035 363 1084 501 51 429 2040 1926 518 617 420 Spaces Moved 10580 | 27 748 153 1361 425 246 48 802 517 235 114 151 942 625 195 568 306 46 231 1072 774 262 377 355 Core 68 | . . . . . . . . . . . . . . . . . . . . . . . 68 Treads 247 | . 116 18 2 . . . 5 . . . . . 81 21 . . . . 4 . . . . Legs 1206 | . . . . . . . . . . . . . . . 476 306 46 231 147 . . . . Wheels 8907 | 27 632 135 1359 425 246 48 797 517 235 114 151 942 544 174 92 . . . 921 774 262 356 156 Hover 152 | . . . . . . . . . . . . . . . . . . . . . . 21 131 Flight . | . . . . . . . . . . . . . . . . . . . . . . . . Fastest Speed 50 | 95 100 115 110 125 125 125 105 120 120 120 120 115 120 120 106 110 110 100 116 143 123 70 50 Average Speed 129 | 99 138 129 122 125 125 125 115 120 120 120 120 122 152 161 163 110 110 111 142 143 127 118 83 Slowest Speed 490 | 100 240 240 400 125 125 125 320 120 120 120 120 165 245 245 240 110 110 180 490 143 280 165 110 Overloaded Moves . | . . . . . . . . . . . . . . . . . . . . . . . . Propulsion Burnouts . | . . . . . . . . . . . . . . . . . . . . . . . . Robots Hopped . | . . . . . . . . . . . . . . . . . . . . . . . . Potential Cave-ins 3 | . . . . . . . . . . . . . . . . 1 . . . 2 . . . Cave-ins Triggered . | . . . . . . . . . . . . . . . . . . . . . . . . Exploration Rate (%) 48 | 3 94 33 97 93 66 14 83 14 8 5 82 26 68 41 77 50 1 95 21 50 94 14 39 Regions Visited 23 Branch Regions 11 Pre-discovered Areas 1 | . . . . 1 . . . . . . . . . . . . . . . . . . . Known Exits Taken 13 | . . . 1 . . . 1 . 1 . . 1 1 1 1 1 1 . 1 1 1 1 . Unknown Exits Taken 7 | 1 1 1 . 1 1 1 . 1 . . . . . . . . . . . . . . . Scrap Searched 4 | . . . . 1 . 1 . . . . . . 1 1 . . . . . . . . . Spaces Dug 88 | . . . 4 . . . 1 . . . . 4 . . . 19 . 3 4 52 . . 1 Terrain Destroyed 588 | . . . 4 . . . 1 . . . . 5 2 5 3 116 . 69 79 290 . 13 1 Melee 20 | . . . 4 . . . 1 . . . . 4 . . . . . 2 4 4 . . 1 Projectile 104 | . . . . . . . . . . . . 1 2 5 3 11 . 23 33 26 . . . AOE 447 | . . . . . . . . . . . . . . . . 105 . 44 28 259 . 11 . Terrain Rammed . | . . . . . . . . . . . . . . . . . . . . . . . . Walls Destroyed . | . . . . . . . . . . . . . . . . . . . . . . . . Machines Disabled . | . . . . . . . . . . . . . . . . . . . . . . . . Actions | -11 -10 -10 -9 -9 -9 -8 -8 -7 -6 -5 -5 -5 -5 -5 -5 -4 -4 -4 -3 -3 -3 -2 -2 --------- Run | Yrd Mat Min Mat Min Exi Min Mat Fac Fac Fac Was Fac Upp Upp War Pro Fac DSF Res Arm Lab Res Tes Total 13998 | 40 1016 162 1938 449 245 69 1038 657 305 119 179 1350 674 213 658 425 46 364 1405 1344 380 512 410 Wait 1602 | . 177 1 362 . . . 117 119 51 . 18 197 7 . 3 76 . 23 83 343 9 14 2 Move 10560 | 26 747 152 1360 424 245 47 802 516 234 114 150 941 624 194 567 305 45 230 1071 773 261 377 355 Hop . | . . . . . . . . . . . . . . . . . . . . . . . . Pick Up 165 | . 12 . 26 1 . 1 13 3 2 1 3 15 9 . 6 . . 15 26 14 8 8 2 Fast Attach 112 | 1 2 . 4 . . 1 14 1 . . . 15 2 1 13 . . 8 22 4 4 7 13 Attach 120 | 3 1 . 5 . . 3 5 2 2 2 . 16 4 . 2 4 1 7 17 8 8 26 4 Detach 58 | 3 . . 2 . . 1 . . . . . 9 1 . 6 . . 8 10 . 9 7 2 Swap 242 | 1 12 . 32 . . 1 22 1 3 1 3 29 3 1 8 6 . 19 38 52 6 4 . Drop 200 | 2 11 . 25 1 . 1 21 1 3 . 2 16 3 1 17 1 . 19 43 19 3 9 2 Fire 831 | 4 54 9 118 23 . 14 42 14 10 1 . 105 15 16 27 33 . 27 78 118 54 57 12 Melee 67 | . . . 4 . . . 1 . . . . 7 4 . . . . 2 17 12 2 . 18 Ram 2 | . . . . . . . . . . . . . . . . . . . . 1 . 1 . Kick . | . . . . . . . . . . . . . . . . . . . . . . . . Crush 3 | . . . . . . . 1 . . . . . 2 . . . . . . . . . . Escape Stasis 5 | . . . . . . . . . . . . . . . . . . 5 . . . . . Rewire 6 | . . . . . . . . . . . 3 . . . . . . 1 . . . 2 . Trap . | . . . . . . . . . . . . . . . . . . . . . . . . Miscellaneous 25 | . . . . . . . . . . . . . . . 9 . . . . . 16 . . Route ------- -11/Scrapyard -10/Materials (discovered 5 exits: *Mat x3 / [*Min x2]) -10/Mines -9/Materials (discovered 5 exits: *Mat x3 / *Min / *Sto) -9/Mines (discovered 4 exits: *Mat x2 / *Exi / [*Zio]) -9/Exiles -8/Mines -8/Materials (discovered 3 exits: *Fac x3) -7/Factory -6/Factory -5/Factory -5/Waste -5/Factory (discovered 2 exits: *Fac / *Upp) -5/Upper Caves -5/Upper Caves -5/Warlord -4/Proximity Caves -4/Factory -4/DSF -3/Research (discovered 2 exits: *Res / *Arm) -3/Armory -3/Lab -2/Research (discovered 2 exits: [*Acc] / *Tes) -2/Testing History --------- Turn | Location | Event 7 | -11/Scrapyard | Discovered new exit (range 3) 46 | -11/Scrapyard | Entered Materials 125 | -10/Materials | Discovered new exit (range 3) 156 | -10/Materials | Discovered new exit (range 12) 306 | -10/Materials | Build established: Mutant 559 | -10/Materials | Discovered new exit (range 17) 720 | -10/Materials | Central database locked down 800 | -10/Materials | Discovered new exit (range 4) 1021 | -10/Materials | Discovered new exit (range 7) 1172 | -10/Materials | Repaired Imp. Assault Rifle 1224 | -10/Materials | Repaired Imp. Assault Rifle 1453 | -10/Materials | Entered Mines 1541 | -10/Mines | Discovered new exit (range 14) 1593 | -10/Mines | Learned Materials terminal intel 1609 | -10/Mines | Learned Materials terminal intel 1679 | -10/Mines | Entered Materials 1679 | -9/Materials | Evolved 2 slots: Propulsion x1, Utility x1 1680 | -9/Materials | Identified exit to Storage 1681 | -9/Materials | Loaded intel: 12 terminal locations 2036 | -9/Materials | Identified exit to Mines 2044 | -9/Materials | Discovered new exit (range 9) 2374 | -9/Materials | Discovered new exit (range 15) 2568 | -9/Materials | Discovered new exit (range 16) 2633 | -9/Materials | Repaired Imp. Assault Rifle 2685 | -9/Materials | Repaired Imp. Assault Rifle 2724 | -9/Materials | Repaired Imp. Light Armor Plating 2861 | -9/Materials | Central database locked down 3961 | -9/Materials | Repaired Imp. Assault Rifle 3994 | -9/Materials | Repaired Arm. Wheel 4163 | -9/Materials | Entered Mines 4194 | -9/Mines | Learned location of Zion (-7) 4314 | -9/Mines | A Derelict revealed a hidden shortcut to a safe place 4527 | -9/Mines | Discovered new exit (range 11) 4694 | -9/Mines | Discovered new exit (range 5) 4758 | -9/Mines | Deemed a non-threat by the Exiles lab entrance 4759 | -9/Mines | Discovered new exit (range 5) 4764 | -9/Mines | Entered Exiles 4764 | -9/Exiles | Found Exiles lab abandoned 5060 | -9/Exiles | Discovered new exit (range 11) 5071 | -9/Exiles | Entered Mines 5171 | -8/Mines | Discovered new exit (range 8) 5180 | -8/Mines | Entered Materials 5180 | -8/Materials | Evolved 2 slots: Propulsion x1, Weapon x1 5181 | -8/Materials | Identified exit to Factory 5182 | -8/Materials | Loaded intel: 12 terminal locations 5497 | -8/Materials | Garrison activated, responded to threat 5549 | -8/Materials | Build established: Tank 5644 | -8/Materials | Repaired Imp. Assault Rifle 5792 | -8/Materials | Central database locked down 6117 | -8/Materials | Discovered exit to Factory (range 15) 6380 | -8/Materials | Met 7R-MNS 6440 | -8/Materials | Entered Factory 6440 | -7/Factory | Evolved 2 slots: Utility x2 6441 | -7/Factory | Caught up to 7R-MNS 7106 | -7/Factory | Garrison activated, responded to threat 7205 | -7/Factory | Discovered new exit (range 16) 7232 | -7/Factory | Entered another Factory area 7232 | -6/Factory | Evolved 2 slots: Utility x2 7233 | -6/Factory | Caught up to 7R-MNS 7415 | -6/Factory | Spotted B-75 Beast 7597 | -6/Factory | Discovered new exit (range 7) 7604 | -6/Factory | Identified exit to Factory 7607 | -6/Factory | Entered another Factory area 7607 | -5/Factory | Evolved 2 slots: Utility x2 7608 | -5/Factory | Caught up to 7R-MNS 7667 | -5/Factory | Central database locked down 7751 | -5/Factory | Sucked down chute 7751 | -5/Factory | Entered Waste 7752 | -5/Waste | Joined by Warlord forces that had cleared the area 7917 | -5/Waste | Discovered new exit (range 11) 7934 | -5/Waste | Identified exit to Factory 7959 | -5/Waste | Entered Factory 7959 | -5/Factory | Accompanied by 20 allies 8113 | -5/Factory | Build established: Scavenger-Tank 8230 | -5/Factory | Lost 16 allies 8543 | -5/Factory | Repaired Broken Imp. Remote Shield 8805 | -5/Factory | Fabricated Force Lance (x2) 8834 | -5/Factory | Discovered new exit (range 13) 8944 | -5/Factory | Cargo convoy interrupted 8952 | -5/Factory | Identified exit to Factory 9227 | -5/Factory | System corruption reached 10% 9479 | -5/Factory | Lost 3 parts (1p1n1w) 9607 | -5/Factory | Discovered new exit (range 6) 9651 | -5/Factory | Identified exit to Upper Caves 9656 | -5/Factory | Lost 4 parts (1p2n1u) 9768 | -5/Factory | Entered Upper Caves 9977 | -5/Upper Caves | Build established: Scavenger-Mutant 10190 | -5/Upper Caves | Attracted the attention of an 0b10 checkpoint 10445 | -5/Upper Caves | Found DCF Scrap (14 items) 10490 | -5/Upper Caves | Spotted B-75 Beast 10559 | -5/Upper Caves | Destroyed B-75 Beast 10585 | -5/Upper Caves | Lost 3 parts (1n1u1w) 10793 | -5/Upper Caves | Discovered new exit (range 5) 10800 | -5/Upper Caves | Identified exit to Upper Caves 10803 | -5/Upper Caves | Entered another Upper Caves area 10861 | -5/Upper Caves | Build established: Skirmisher 10951 | -5/Upper Caves | Attracted the attention of an 0b10 checkpoint 10998 | -5/Upper Caves | Identified exit to Warlord 11166 | -5/Upper Caves | Entered Warlord 11228 | -5/Warlord | System corruption cleaned by Quarantine Array 11342 | -5/Warlord | Found Prototype Processor 11342 | -5/Warlord | Identified Spectral Analyzer 11350 | -5/Warlord | Found Prototype Hackware 11350 | -5/Warlord | Identified System Mapper 11373 | -5/Warlord | Found Prototype Reactor 11626 | -5/Warlord | Visited the Vortex Lab 11637 | -5/Warlord | Warlord's base attacked by MAIN.C 11643 | -5/Warlord | Found Prototype Energy Gun 11646 | -5/Warlord | Found Prototype Energy Gun 11652 | -5/Warlord | Met EX-DEC 11663 | -5/Warlord | Build established: Hacker-Skirmisher 11904 | -5/Warlord | Met Warlord 11987 | -5/Warlord | Warlord forces counterattacked 12048 | -5/Warlord | Spotted Striker 12075 | -5/Warlord | Spotted Striker 12104 | -5/Warlord | Spotted Executioner 12134 | -5/Warlord | Found Prototype Ballistic Cannon 12140 | -5/Warlord | Spotted Striker 12143 | -5/Warlord | Spotted B-86 Titan 12155 | -5/Warlord | Spotted Executioner 12175 | -5/Warlord | Spotted B-75 Beast 12226 | -5/Warlord | Lost 30 allies 12238 | -5/Warlord | Discovered new exit (range 12) 12249 | -5/Warlord | Identified exit to Proximity Caves 12250 | -5/Warlord | Entered Proximity Caves 12278 | -4/Proximity Caves | Lost 3 allies 12686 | -4/Proximity Caves | Build established: Scavenger-Gunner 12701 | -4/Proximity Caves | Attracted the attention of an 0b10 checkpoint 12738 | -4/Proximity Caves | Discovered exit to Factory (range 10) 12751 | -4/Proximity Caves | Entered Factory 12751 | -4/Factory | Evolved 2 slots: Power x1, Propulsion x1 12802 | -4/Factory | Identified exit to DSF 12802 | -4/Factory | Entered DSF 12842 | -4/DSF | Additional patrols routed to DSF 12891 | -4/DSF | Identified Vortex Rail (x2) 12957 | -4/DSF | Discovered new exit (range 12) 13082 | -4/DSF | Identified Hvy. Autocannon 13213 | -4/DSF | Sterilization system engaged 13230 | -4/DSF | Identified exit to Research 13231 | -4/DSF | Entered Research 13231 | -3/Research | Evolved 2 slots: Utility x1, Weapon x1 13238 | -3/Research | Destroyed 8 combat bots 14037 | -3/Research | Found Prototype Device 14037 | -3/Research | Identified Exp. Shield Generator 14042 | -3/Research | Found Exp. Shield Generator 14180 | -3/Research | System corruption reached 10% 14236 | -3/Research | Build established: Infiltrator-Gunner 14295 | -3/Research | Found Prototype Protection 14303 | -3/Research | Identified Centrium Heavy Armor Plating 14363 | -3/Research | Spotted B-86 Titan 14369 | -3/Research | Attached CPS modules to B-86 Titan. 14384 | -3/Research | Destroyed B-86 Titan 14433 | -3/Research | Found Fusion Bomb Launcher 14635 | -3/Research | Build established: Scavenger-Tank 14641 | -3/Research | Identified Vortex Chain Reactor 14657 | -3/Research | Watched by a mysterious "MATRIX" hacker. 14665 | -3/Research | Lost 4 parts (2p2u) 14770 | -3/Research | Discovered new exit (range 7) 14778 | -3/Research | Identified exit to Research 14952 | -3/Research | Repaired Hpw. Tractor Beam 15244 | -3/Research | Found Fusion Bomb Launcher 15256 | -3/Research | Discovered new exit (range 10) 15266 | -3/Research | Build established: Scavenger-Gunner 15270 | -3/Research | Identified exit to Armory 15271 | -3/Research | Entered Armory 15471 | -3/Armory | Fabricated Exp. Shield Generator (x1) 15784 | -3/Armory | Found Unknown Device 15784 | -3/Armory | Identified Adv. Force Booster 15858 | -3/Armory | Build established: Scavenger-Tank 16329 | -3/Armory | Destroyed 9 combat bots 16771 | -3/Armory | First assault squad dispatched 16899 | -3/Armory | Destroyed 9 combat bots 17101 | -3/Armory | Destroyed 9 combat bots 17104 | -3/Armory | Lost 4 parts (1n1u2w) 17194 | -3/Armory | Discovered new exit (range 3) 17196 | -3/Armory | Identified exit to Lab 17197 | -3/Armory | Entered Lab 17201 | -3/Lab | Discovered exit to Research (range 9) 17219 | -3/Lab | Unable to decrypt terminal 17253 | -3/Lab | Gained access to the hidden lab's interior 17265 | -3/Lab | Detected by scanners 17274 | -3/Lab | Confronted by A5 17379 | -3/Lab | Destroyed A5 17415 | -3/Lab | Found Prototype Hackware 17415 | -3/Lab | Identified Exp. System Shield 17461 | -3/Lab | Found Prototype Hackware 17464 | -3/Lab | Found Prototype Protection 17468 | -3/Lab | Found Prototype Energy Gun 17543 | -3/Lab | Unable to decrypt terminal 17576 | -3/Lab | Found Alien Artifact 17588 | -3/Lab | Found Alien Artifact 17617 | -3/Lab | Found Prototype Energy Gun 17684 | -3/Lab | Build established: Scavenger-Gunner 17705 | -3/Lab | Unable to decrypt terminal 17715 | -3/Lab | Entered Research 17715 | -2/Research | Warlord forces began assault on 0b10 17715 | -2/Research | Evolved 2 slots: Propulsion x1, Utility x1 17740 | -2/Research | Distinguished unit "Shockpunchers" dispatched to help 17759 | -2/Research | Identified Core Expander 17759 | -2/Research | Installed Core Expander, added new Propulsion slot 17761 | -2/Research | Identified Integrated Reactor 17761 | -2/Research | Installed Integrated Reactor, increased core energy generation (+10) 17825 | -2/Research | Research machine network offline 17866 | -2/Research | Lost 5 allies 17904 | -2/Research | Found Quantum Capacitor 17972 | -2/Research | Identified Exp. Powered Armor 18005 | -2/Research | Found Prototype Device 18005 | -2/Research | Identified Exp. Focal Shield 18143 | -2/Research | Borebot progress halted 18159 | -2/Research | Spotted Tracker 18166 | -2/Research | Spotted Tracker 18179 | -2/Research | Spotted Combat Programmer 18188 | -2/Research | Identified Hyp. EM Gauss Rifle 18194 | -2/Research | Lost 4 allies 18219 | -2/Research | Identified Tachyon Dispersion Ray 18221 | -2/Research | Spotted Combat Programmer 18225 | -2/Research | Destroyed Tracker 18230 | -2/Research | System corruption reached 10% 18254 | -2/Research | Spotted Striker 18254 | -2/Research | Spotted Striker 18261 | -2/Research | Combat Programmer assimilated allied PR-V9N(K) 18262 | -2/Research | Spotted PR-V9N(K) 18281 | -2/Research | Combat Programmer assimilated allied ET-06Q(i) 18287 | -2/Research | Identified Quantum Router 18294 | -2/Research | Combat Programmer assimilated allied W9-74E(l) 18323 | -2/Research | Discovered new exit (range 5) 18325 | -2/Research | Discovered new exit (range 11) 18325 | -2/Research | Identified exit to Testing 18332 | -2/Research | Entered Testing 18360 | -2/Testing | Lost 25 parts (4p6n8u7w) 18381 | -2/Testing | Garrison activated, responded to threat 18619 | -2/Testing | System corruption reached 30% 18657 | -2/Testing | Core integrity fell below 50% 18725 | -2/Testing | Intercept squad dispatched 18745 | -2/Testing | Core integrity fell below 20% 18746 | -2/Testing | Spotted Tracker 18746 | -2/Testing | Spotted Tracker 18752 | -2/Testing | Destroyed by Tracker with Linked Autogun Last Messages --------------- 18711_ Wheel destroyed. 18711_ Slug penetrates Wall. 18714_ ALERT: Hostile activity reported, dispatching reinforcements to area. 18714_ Penetrated by Slug. 18715_ Dispersion Rifle destroyed. 18718_ Wheel destroyed. 18725_ ALERT: Reliable intel has pinpointed LRC-V3, intercept squad en route. 18727_ System corrupted: Matter fused (-8). 18743_ System corrupted: IFF burst signal emitted. 18745_ Triggered Alarm Trap. 18745_ An alarm sounds. 18745_ ALERT: Alarm triggered, dispatching investigation squad. 18746_ Exp. Heat Sink destroyed. Tracker: "THREAT CONFIRMED. DEPLOY COMBAT PROGRAMMER." 18751_ Adv. Energy Well destroyed. Map ----- +----------------------------------------------------+ | **[ +??????????####??#??????????? | | **[ #??????????#* #??????????? | | *][ """ #??????????# "" #??????????? | | """ #??????????# """ #??????????? | | #### """ #??????????# "T #??????????? | | ???# !! F" ############ """ #??????????? | | ???# !! """ """ ## ! ## "" #??????????? | | ???# """ "" # """ ## ????????????? | | ???+ """ # """ ###+##????????????? | | ???# # """ ## #????????????? | | ???# + """ + " #????????????? | | ???# ######+### # """ ## #????????????? | | ???# #??? # # ### ##????????????? | | ???# #? # # #?# #?????????????? | | ???# ## """ ###### #?# #?????????????? | | ???+ ## ??? #????#####+####?# #?????????????? | | ???# ## ?????#??####### #????# #?????????????? | | ???# ## ????????# """ # #????# #?????????????? | | ???#### ## ?????????#""T""# #????# #?????????????? | | ??????? ## ??????####"" ""# #????# #?????????????? | | ??????? ?#????????p +????# #?????????????? | | ??????? ?????????? s #????# #?????????????? | | ??????? ?????????# """ ######p#?????????????? | | ?????????????????# """ s #?????????????? | | ?????????????????# """ #?????????????? | | ?????????????????# @ #?????????????? | | ???????????? " [gg ### #?????????????? | | ??????????# ## ###### #?# #?????????????? | | ?????????????????# ???????# #?#+#?????????????? | | ??????????????????????????# # ????????????? | | ??????????????????????????###### ! ! #??????????? | | ???????????????????????????????# #??????????? | | ???????????????????????????????# #??????????? | | ???????????????????????????????########??????????? | | | | | | | | | | | | | | | | | | | | | | | | | | | | | | | | | +----------------------------------------------------+ Best States ------------- Heat Dissipation 102 Energy Generation 59 Energy Capacity 780 Matter Stores 300 Matter Capacity 300 Sight Range 16 Robot Scan Range 16 Terrain Scan Density 10 ECM Strength 2 Jamming Range 14 Armor Coverage 1200 Utility Shielding 66 Weapon Shielding 90 Point Defense Rating 400 Weapon Cycling 25 Phase Shifting 15 Evasion (%) 65 Targeting Accuracy 16 Target Analysis 8 Core Analysis 6 Recoil Reduction 9 Offensive Hacking 20 Defensive Hacking 41 Authchip Count 3 Item Schematics ----------------- Plasma Cutter | -9/Materials | Scanalyzed Hpw. Tractor Beam | -9/Materials | Scanalyzed Com. Wheel | -9/Materials | Scanalyzed Axe | -8/Materials | Scanalyzed Hvy. Rocket Launcher | -5/Factory | Scanalyzed Com. HERF Cannon | -5/Factory | Hacked Exp. Shield Generator | -3/Research | Scanalyzed Robot Schematics ------------------ None Fabricated ------------ Force Lance | x2 | -5/Factory | Preloaded Exp. Shield Generator | x1 | -3/Armory | Authchip Repaired ---------- Imp. Assault Rifle | 47% | -10/Materials Imp. Assault Rifle | 58% | -10/Materials Imp. Assault Rifle | 14% | -9/Materials Imp. Assault Rifle | 15% | -9/Materials Imp. Light Armor Plating | 53% | -9/Materials Imp. Assault Rifle | 22% | -9/Materials Arm. Wheel | 32% | -9/Materials Imp. Assault Rifle | 17% | -8/Materials Imp. Remote Shield | 7% | -5/Factory | Broken Hpw. Tractor Beam | 13% | -3/Research Studied --------- Rocket Launcher | -8/Materials | Hacked Com. Wheel | -8/Materials | Hacked Hvy. Rocket Launcher | -5/Factory | Hacked Centrium Wheel | -3/Research | Hacked Alien Tech Used ----------------- Core Expander Integrated Reactor Achievements -------------- Anyone Home? Challenges ------------ None Game ------ Seed FrostGrenadeSheargun Manual? 0 Play Time 04:03:41 Cumulative 157.1 hours Start 2026.04.16 @ 12:00:00 End 2026.04.16 @ 19:39:33 Sessions 3 Manual Loads 0 Difficulty Rogue Special Mode None Game No. 103 Rogue 103 Adventurer 0 Explorer 0 Win Type - Total 5 Types 3/0/1/1/0/0/0/0/0/0 Lore% 62 Gallery% 53 Achievement% 48 Wizard Run 0 Options --------- Layout 2 ASCII 0 Keyboard 1 Movement Arrows Keybinds 0 Fullscreen 2 Font 24/Terminus Map View 50x44 Zoom Use 0% Tactical HUD 1 Map Filters NONE Filters NONE Steam 1 RUN: b34ebf7f-a1a5-42e0-8129-19a778b7cc0f